[Event "Live Chess"]
[Site "Chess.com"]
[Date "2024.06.01"]
[Round "-"]
[White "Inglaterra"]
[Black "CCGoodKnightRookie"]
[Result "1/2-1/2"]
[WhiteElo "2049"]
[BlackElo "2365"]
[TimeControl "300"]
[EndTime "14:48:19 PDT"]
[Termination "Game drawn by repetition"]

1. c4 {[%clk 0:04:56]} 1... c5 {[%clk 0:04:58.6]} 2. Nf3 {[%clk 0:04:53.7]} 2...
Nc6 {[%clk 0:04:57.9]} 3. g3 {[%clk 0:04:42.2]} 3... Nf6 {[%clk 0:04:56.6]} 4.
Bg2 {[%clk 0:04:41.7]} 4... e6 {[%clk 0:04:56]} 5. O-O {[%clk 0:04:38.9]} 5...
d5 {[%clk 0:04:54.9]} 6. cxd5 {[%clk 0:04:38.8]} 6... exd5 {[%clk 0:04:54.7]} 7.
d4 {[%clk 0:04:37.7]} 7... cxd4 {[%clk 0:04:54.1]} 8. Nxd4 {[%clk 0:04:36.1]}
8... Bc5 {[%clk 0:04:53.7]} 9. Nb3 {[%clk 0:04:32.4]} 9... Bb6 {[%clk
0:04:52.2]} 10. Bg5 {[%clk 0:04:29.7]} 10... O-O {[%clk 0:04:49.5]} 11. Nc3
{[%clk 0:04:24.5]} 11... d4 {[%clk 0:04:48.1]} 12. Nd5 {[%clk 0:04:16]} 12...
Re8 {[%clk 0:04:43.7]} 13. Bxf6 {[%clk 0:04:03.9]} 13... gxf6 {[%clk 0:04:40.5]}
14. Nxb6 {[%clk 0:03:59.8]} 14... axb6 {[%clk 0:04:37]} 15. Bxc6 {[%clk
0:03:56.7]} 15... bxc6 {[%clk 0:04:34.3]} 16. Nxd4 {[%clk 0:03:53.9]} 16... c5
{[%clk 0:04:30.9]} 17. Nf3 {[%clk 0:03:35.7]} 17... Qxd1 {[%clk 0:04:28.6]} 18.
Rfxd1 {[%clk 0:03:34.2]} 18... Rxe2 {[%clk 0:04:28.5]} 19. Rd8+ {[%clk
0:03:28.2]} 19... Kg7 {[%clk 0:04:25.5]} 20. b3 {[%clk 0:03:11]} 20... Bb7
{[%clk 0:04:08.1]} 21. Rxa8 {[%clk 0:03:03.4]} 21... Bxa8 {[%clk 0:04:08]} 22.
Nh4 {[%clk 0:02:59]} 22... Be4 {[%clk 0:04:05.2]} 23. Ng2 {[%clk 0:02:50.8]}
23... b5 {[%clk 0:03:58.2]} 24. Rc1 {[%clk 0:02:44.6]} 24... Rxa2 {[%clk
0:03:53.8]} 25. Nf4 {[%clk 0:02:31.1]} 25... c4 {[%clk 0:03:48.7]} 26. bxc4
{[%clk 0:02:28]} 26... bxc4 {[%clk 0:03:47.1]} 27. f3 {[%clk 0:02:25.6]} 27...
Bd3 {[%clk 0:03:39.6]} 28. Nxd3 {[%clk 0:02:14.2]} 28... cxd3 {[%clk 0:03:38]}
29. Rd1 {[%clk 0:02:13.8]} 29... Ra3 {[%clk 0:03:32.2]} 30. Kf2 {[%clk 0:02:13]}
30... Ra2+ {[%clk 0:03:30.4]} 31. Kg1 {[%clk 0:02:12.1]} 31... Ra3 {[%clk
0:03:24.6]} 32. Kf2 {[%clk 0:02:11.1]} 32... f5 {[%clk 0:03:22.8]} 33. Rd2
{[%clk 0:02:06.7]} 33... Kf6 {[%clk 0:02:56.7]} 34. f4 {[%clk 0:01:54.9]} 34...
h5 {[%clk 0:02:41.3]} 35. Ke3 {[%clk 0:01:47.7]} 35... Ra1 {[%clk 0:02:39.1]}
36. Rxd3 {[%clk 0:01:44]} 36... h4 {[%clk 0:02:33.2]} 37. Kf3 {[%clk 0:01:40]}
37... h3 {[%clk 0:02:14.7]} 38. g4 {[%clk 0:01:14.3]} 38... Rg1 {[%clk
0:02:04.7]} 39. gxf5 {[%clk 0:01:03.9]} 39... Rg2 {[%clk 0:01:46.6]} 40. Rd6+
{[%clk 0:01:00.8]} 40... Kxf5 {[%clk 0:01:43.7]} 41. Rh6 {[%clk 0:01:00]} 41...
Rxh2 {[%clk 0:01:41.6]} 42. Rh5+ {[%clk 0:00:55.7]} 42... Kg6 {[%clk 0:01:39.9]}
43. Rg5+ {[%clk 0:00:54.3]} 43... Kf6 {[%clk 0:01:38.5]} 44. Rh5 {[%clk
0:00:53.2]} 44... Rh1 {[%clk 0:01:36.4]} 45. Kg3 {[%clk 0:00:50.1]} 45... Rg1+
{[%clk 0:01:10.7]} 46. Kf3 {[%clk 0:00:48.8]} 46... Rf1+ {[%clk 0:01:08.5]} 47.
Kg3 {[%clk 0:00:48]} 47... Ra1 {[%clk 0:01:04.4]} 48. Rxh3 {[%clk 0:00:22.2]}
48... Ra3+ {[%clk 0:01:00.6]} 49. Kg4 {[%clk 0:00:21.7]} 49... Ra4 {[%clk
0:00:55.8]} 50. Rh6+ {[%clk 0:00:19]} 50... Kg7 {[%clk 0:00:55.2]} 51. Rb6
{[%clk 0:00:17.9]} 51... Ra5 {[%clk 0:00:53.6]} 52. Rc6 {[%clk 0:00:16.7]} 52...
f6 {[%clk 0:00:52.7]} 53. Rb6 {[%clk 0:00:15.8]} 53... Kg6 {[%clk 0:00:52.1]}
54. Rc6 {[%clk 0:00:15]} 54... Rb5 {[%clk 0:00:51.1]} 55. Ra6 {[%clk 0:00:14.2]}
55... Rc5 {[%clk 0:00:50.4]} 56. Rb6 {[%clk 0:00:13.2]} 56... Rc7 {[%clk
0:00:49.2]} 57. Ra6 {[%clk 0:00:12.6]} 57... Kf7 {[%clk 0:00:48]} 58. Rb6 {[%clk
0:00:12]} 58... Ke7 {[%clk 0:00:47.3]} 59. Kf5 {[%clk 0:00:11]} 59... Rc5+
{[%clk 0:00:46.7]} 60. Kg4 {[%clk 0:00:10.6]} 60... Rd5 {[%clk 0:00:45.6]} 61.
Ra6 {[%clk 0:00:09.4]} 61... Rb5 {[%clk 0:00:44.9]} 62. Rc6 {[%clk 0:00:08.6]}
62... Rb1 {[%clk 0:00:44]} 63. Ra6 {[%clk 0:00:08.1]} 63... Rh1 {[%clk
0:00:36.3]} 64. Kf5 {[%clk 0:00:07.2]} 64... Rh5+ {[%clk 0:00:35.4]} 65. Kg4
{[%clk 0:00:06.7]} 65... Rh8 {[%clk 0:00:33.3]} 66. Kf5 {[%clk 0:00:06.3]} 66...
Rb8 {[%clk 0:00:29.5]} 67. Ra7+ {[%clk 0:00:05.8]} 67... Kf8 {[%clk 0:00:26.6]}
68. Kxf6 {[%clk 0:00:05.7]} 68... Rb6+ {[%clk 0:00:25.9]} 69. Kg5 {[%clk
0:00:04.7]} 69... Rb5+ {[%clk 0:00:25.8]} 70. f5 {[%clk 0:00:03.8]} 70... Kg8
{[%clk 0:00:25.3]} 71. Kg6 {[%clk 0:00:03.2]} 71... Rb8 {[%clk 0:00:17.3]} 72.
f6 {[%clk 0:00:02.4]} 72... Kh8 {[%clk 0:00:16.3]} 73. Rh7+ {[%clk 0:00:01.6]}
73... Kg8 {[%clk 0:00:15.2]} 74. Rg7+ {[%clk 0:00:01.5]} 74... Kf8 {[%clk
0:00:14.4]} 75. Rh7 {[%clk 0:00:01.4]} 75... Kg8 {[%clk 0:00:12.7]} 76. Rg7+
{[%clk 0:00:01.1]} 76... Kh8 {[%clk 0:00:11.9]} 77. Rh7+ {[%clk 0:00:01]} 77...
Kg8 {[%clk 0:00:11.4]} 1/2-1/2

[Event "Live Chess"]
[Site "Chess.com"]
[Date "2024.06.01"]
[Round "-"]
[White "Dhaydon19"]
[Black "Crowded_House"]
[Result "1/2-1/2"]
[WhiteElo "2675"]
[BlackElo "1740"]
[TimeControl "300"]
[EndTime "14:48:29 PDT"]
[Termination "Game drawn - insufficient material"]

1. d4 {[%clk 0:04:58.4]} 1... e6 {[%clk 0:04:59.3]} 2. Nf3 {[%clk 0:04:57.9]}
2... d5 {[%clk 0:04:58.5]} 3. g3 {[%clk 0:04:57.7]} 3... Bd6 {[%clk 0:04:56.8]}
4. Bg2 {[%clk 0:04:57.4]} 4... Nf6 {[%clk 0:04:55.2]} 5. O-O {[%clk 0:04:56.8]}
5... c6 {[%clk 0:04:54.7]} 6. c3 {[%clk 0:04:56.5]} 6... O-O {[%clk 0:04:53.6]}
7. Qc2 {[%clk 0:04:56.2]} 7... Nbd7 {[%clk 0:04:53]} 8. Nbd2 {[%clk 0:04:55.9]}
8... b6 {[%clk 0:04:51.3]} 9. e4 {[%clk 0:04:55.6]} 9... dxe4 {[%clk 0:04:49.7]}
10. Nxe4 {[%clk 0:04:55.3]} 10... Nxe4 {[%clk 0:04:48.4]} 11. Qxe4 {[%clk
0:04:55.1]} 11... Bb7 {[%clk 0:04:43.4]} 12. Ng5 {[%clk 0:04:54.3]} 12... Nf6
{[%clk 0:04:41.6]} 13. Qh4 {[%clk 0:04:53.9]} 13... h6 {[%clk 0:04:31.1]} 14.
Ne4 {[%clk 0:04:51]} 14... Nxe4 {[%clk 0:04:29.5]} 15. Qxe4 {[%clk 0:04:49.9]}
15... Qf6 {[%clk 0:04:17]} 16. a4 {[%clk 0:04:43.3]} 16... Rfb8 {[%clk 0:04:13]}
17. Qe2 {[%clk 0:04:39.2]} 17... c5 {[%clk 0:04:02.7]} 18. Bxb7 {[%clk
0:04:36.3]} 18... Rxb7 {[%clk 0:04:02]} 19. Qe4 {[%clk 0:04:36]} 19... Rbb8
{[%clk 0:03:58.1]} 20. Be3 {[%clk 0:04:34.7]} 20... cxd4 {[%clk 0:03:46.3]} 21.
Bxd4 {[%clk 0:04:33.2]} 21... Qe7 {[%clk 0:03:34]} 22. Rfe1 {[%clk 0:04:30.9]}
22... Bc5 {[%clk 0:03:31.3]} 23. Be5 {[%clk 0:04:28.2]} 23... Rd8 {[%clk
0:03:26.1]} 24. Rad1 {[%clk 0:04:25.6]} 24... Rxd1 {[%clk 0:03:20.1]} 25. Rxd1
{[%clk 0:04:24.8]} 25... Rd8 {[%clk 0:03:19.3]} 26. Rxd8+ {[%clk 0:04:23.7]}
26... Qxd8 {[%clk 0:03:18.4]} 27. Qg4 {[%clk 0:04:23.4]} 27... Qg5 {[%clk
0:03:08.1]} 28. Qxg5 {[%clk 0:04:21.5]} 28... hxg5 {[%clk 0:03:06.9]} 29. b4
{[%clk 0:04:18.2]} 29... Be7 {[%clk 0:03:00.4]} 30. b5 {[%clk 0:04:17]} 30...
Bf6 {[%clk 0:02:47.4]} 31. Bb8 {[%clk 0:04:11.2]} 31... Bxc3 {[%clk 0:02:46]}
32. Bxa7 {[%clk 0:04:10.9]} 32... Ba5 {[%clk 0:02:45]} 33. Kf1 {[%clk 0:04:06]}
33... Kf8 {[%clk 0:02:43.2]} 34. Ke2 {[%clk 0:04:05]} 34... Ke7 {[%clk
0:02:42.6]} 35. Bb8 {[%clk 0:04:03.6]} 35... f6 {[%clk 0:02:35.7]} 36. g4 {[%clk
0:04:02.1]} 36... e5 {[%clk 0:02:34.3]} 37. Ke3 {[%clk 0:03:58.6]} 37... Ke6
{[%clk 0:02:33.2]} 38. Ke4 {[%clk 0:03:54.7]} 38... g6 {[%clk 0:02:31.6]} 39. f3
{[%clk 0:03:53.9]} 39... f5+ {[%clk 0:02:30]} 40. Kd3 {[%clk 0:03:52.4]} 40...
Kd5 {[%clk 0:02:24.9]} 41. Bc7 {[%clk 0:03:49.7]} 41... e4+ {[%clk 0:02:13]} 42.
fxe4+ {[%clk 0:03:47.8]} 42... fxe4+ {[%clk 0:02:11.4]} 43. Ke3 {[%clk
0:03:47.4]} 43... Kc4 {[%clk 0:02:06.4]} 44. Bd8 {[%clk 0:03:42.5]} 44... Kb4
{[%clk 0:02:05.3]} 45. Bxg5 {[%clk 0:03:40.8]} 45... Kxa4 {[%clk 0:02:05.2]} 46.
Kxe4 {[%clk 0:03:39.6]} 46... Kxb5 {[%clk 0:02:04.2]} 47. Bf6 {[%clk 0:03:37.3]}
47... Kc6 {[%clk 0:02:00.8]} 48. h4 {[%clk 0:03:35.5]} 48... Bd2 {[%clk
0:01:49.9]} 49. Ke5 {[%clk 0:03:28.7]} 49... Kd7 {[%clk 0:01:32.9]} 50. Kd5
{[%clk 0:03:25.5]} 50... b5 {[%clk 0:01:30.3]} 51. Bg7 {[%clk 0:03:08.7]} 51...
b4 {[%clk 0:01:29.1]} 52. Bb2 {[%clk 0:02:58.4]} 52... Bc3 {[%clk 0:01:24.4]}
53. Bc1 {[%clk 0:02:57.4]} 53... b3 {[%clk 0:01:22.9]} 54. h5 {[%clk 0:02:52.7]}
54... gxh5 {[%clk 0:01:18.5]} 55. gxh5 {[%clk 0:02:51.5]} 55... b2 {[%clk
0:01:18.4]} 56. Bxb2 {[%clk 0:02:50.5]} 56... Bxb2 {[%clk 0:01:17.4]} 57. h6
{[%clk 0:02:50.2]} 57... Bh8 {[%clk 0:01:16.1]} 58. h7 {[%clk 0:02:50]} 58...
Ba1 {[%clk 0:01:15.3]} 59. Ke4 {[%clk 0:02:49.7]} 59... Ke8 {[%clk 0:01:13.6]}
60. Kf5 {[%clk 0:02:49.4]} 60... Kf7 {[%clk 0:01:12.2]} 61. h8=Q {[%clk
0:02:49]} 61... Bxh8 {[%clk 0:01:10]} 1/2-1/2

[Event "Live Chess"]
[Site "Chess.com"]
[Date "2024.06.01"]
[Round "-"]
[White "jimwad"]
[Black "LL220284LL"]
[Result "0-1"]
[WhiteElo "1286"]
[BlackElo "2531"]
[TimeControl "300"]
[EndTime "14:48:37 PDT"]
[Termination "LL220284LL won by resignation"]

1. d4 {[%clk 0:04:55]} 1... c6 {[%clk 0:04:59.9]} 2. e4 {[%clk 0:04:53.4]} 2...
Nf6 {[%clk 0:04:59.8]} 3. Nc3 {[%clk 0:04:52.4]} 3... d6 {[%clk 0:04:58.9]} 4.
Nf3 {[%clk 0:04:51.5]} 4... g6 {[%clk 0:04:57.7]} 5. Bg5 {[%clk 0:04:50.3]} 5...
Bg7 {[%clk 0:04:57]} 6. Be2 {[%clk 0:04:47.4]} 6... b5 {[%clk 0:04:55.6]} 7. a3
{[%clk 0:04:45.1]} 7... Bb7 {[%clk 0:04:49.4]} 8. O-O {[%clk 0:04:43.1]} 8... h6
{[%clk 0:04:46.9]} 9. Be3 {[%clk 0:04:41.2]} 9... O-O {[%clk 0:04:46]} 10. Qd2
{[%clk 0:04:35]} 10... Kh7 {[%clk 0:04:42.1]} 11. b4 {[%clk 0:04:24.3]} 11...
Nbd7 {[%clk 0:04:40.7]} 12. Rad1 {[%clk 0:04:21.2]} 12... a5 {[%clk 0:04:39.5]}
13. Nb1 {[%clk 0:04:16.2]} 13... Nxe4 {[%clk 0:04:37]} 14. Qd3 {[%clk
0:04:13.7]} 14... Ndf6 {[%clk 0:04:34.5]} 15. Nfd2 {[%clk 0:04:08.7]} 15... Nxd2
{[%clk 0:04:33.2]} 16. Qxd2 {[%clk 0:04:07.5]} 16... axb4 {[%clk 0:04:32.1]} 17.
axb4 {[%clk 0:04:03.6]} 17... Ra2 {[%clk 0:04:29.9]} 18. Nc3 {[%clk 0:04:01]}
18... Ra3 {[%clk 0:04:27.3]} 19. Nb1 {[%clk 0:03:58.7]} 19... Ra1 {[%clk
0:04:25.9]} 20. Nc3 {[%clk 0:03:56.8]} 20... Rxd1 {[%clk 0:04:25.8]} 21. Rxd1
{[%clk 0:03:55.5]} 21... Qc8 {[%clk 0:04:23.5]} 22. Bf3 {[%clk 0:03:52.4]} 22...
Qf5 {[%clk 0:04:15.9]} 23. Ne2 {[%clk 0:03:47.7]} 23... Ra8 {[%clk 0:04:13]} 24.
Ng3 {[%clk 0:03:46]} 24... Qd7 {[%clk 0:04:09.5]} 25. c3 {[%clk 0:03:40.8]}
25... Ra3 {[%clk 0:03:59]} 26. Qb2 {[%clk 0:03:21.4]} 26... Ra4 {[%clk
0:03:57.5]} 27. Re1 {[%clk 0:03:12.6]} 27... Qd8 {[%clk 0:03:55.1]} 28. Bd1
{[%clk 0:03:10.7]} 28... Ra7 {[%clk 0:03:54]} 29. Bb3 {[%clk 0:03:08.3]} 29...
Bc8 {[%clk 0:03:48.4]} 30. Bxf7 {[%clk 0:03:04.6]} 30... e6 {[%clk 0:03:47.4]}
31. Qc2 {[%clk 0:02:59.5]} 31... Rxf7 {[%clk 0:03:45.6]} 32. Ne2 {[%clk
0:02:42.1]} 32... Ng4 {[%clk 0:03:43.1]} 33. Nf4 {[%clk 0:02:38.3]} 33... Qf6
{[%clk 0:03:39.2]} 34. h3 {[%clk 0:02:32]} 34... Nxe3 {[%clk 0:03:38]} 35. fxe3
{[%clk 0:02:28.2]} 35... e5 {[%clk 0:03:36.4]} 36. Nh5 {[%clk 0:02:19.4]} 36...
Qh4 {[%clk 0:03:31.1]} 37. Nxg7 {[%clk 0:02:17]} 37... Qxe1+ {[%clk 0:03:27.6]}
38. Kh2 {[%clk 0:02:16]} 38... Kxg7 {[%clk 0:03:26.1]} 0-1

[Event "Live Chess"]
[Site "Chess.com"]
[Date "2024.06.01"]
[Round "-"]
[White "ogpin"]
[Black "WorcesterYork"]
[Result "0-1"]
[WhiteElo "2200"]
[BlackElo "2480"]
[TimeControl "300"]
[EndTime "14:49:09 PDT"]
[Termination "WorcesterYork won by resignation"]

1. a4 {[%clk 0:04:58.7]} 1... e5 {[%clk 0:04:58.4]} 2. Ra3 {[%clk 0:04:58.6]}
2... Bxa3 {[%clk 0:04:56.2]} 3. Nxa3 {[%clk 0:04:58.5]} 3... h5 {[%clk
0:04:54.6]} 4. b3 {[%clk 0:04:57.6]} 4... h4 {[%clk 0:04:53.6]} 5. Bb2 {[%clk
0:04:56.6]} 5... Nc6 {[%clk 0:04:52.3]} 6. Nc4 {[%clk 0:04:48.3]} 6... d6 {[%clk
0:04:51.3]} 7. h3 {[%clk 0:04:43.1]} 7... Be6 {[%clk 0:04:49.8]} 8. e3 {[%clk
0:04:41.1]} 8... Nge7 {[%clk 0:04:49.1]} 9. Nf3 {[%clk 0:04:31.8]} 9... Ng6
{[%clk 0:04:49]} 10. d4 {[%clk 0:04:24.1]} 10... exd4 {[%clk 0:04:47.7]} 11.
Nxd4 {[%clk 0:04:23.7]} 11... Nxd4 {[%clk 0:04:46.8]} 12. Qxd4 {[%clk
0:04:22.1]} 12... f6 {[%clk 0:04:45.9]} 13. Qe4 {[%clk 0:04:14.9]} 13... Kf7
{[%clk 0:04:40.4]} 14. Bd3 {[%clk 0:04:13.4]} 14... Ne5 {[%clk 0:04:38.6]} 15.
Nxe5+ {[%clk 0:03:57.8]} 15... dxe5 {[%clk 0:04:38.5]} 16. Qg6+ {[%clk
0:03:54.6]} 16... Kg8 {[%clk 0:04:37.1]} 17. O-O {[%clk 0:03:54]} 17... Qd7
{[%clk 0:04:33.8]} 18. Rd1 {[%clk 0:03:43.5]} 18... Rh6 {[%clk 0:04:19.8]} 19.
Qe4 {[%clk 0:03:42.6]} 19... c6 {[%clk 0:04:18.2]} 20. Qf3 {[%clk 0:03:31.4]}
20... Qf7 {[%clk 0:04:16.2]} 21. a5 {[%clk 0:03:29.4]} 21... Rd8 {[%clk
0:04:14.5]} 22. a6 {[%clk 0:03:23.9]} 22... Bd5 {[%clk 0:04:08.5]} 23. e4 {[%clk
0:03:07.1]} 23... Be6 {[%clk 0:04:07.4]} 24. axb7 {[%clk 0:03:02.4]} 24... Qxb7
{[%clk 0:04:07.3]} 25. Kh2 {[%clk 0:03:01.6]} 25... Qf7 {[%clk 0:04:00]} 26. Ra1
{[%clk 0:02:48.4]} 26... Rd7 {[%clk 0:03:58.8]} 27. Bc1 {[%clk 0:02:42.9]} 27...
Rg6 {[%clk 0:03:57.1]} 28. Be3 {[%clk 0:02:39.7]} 28... Rc7 {[%clk 0:03:37.6]}
29. Bc5 {[%clk 0:02:35.1]} 29... Qd7 {[%clk 0:03:36.4]} 30. Qe3 {[%clk
0:02:28.3]} 30... Rh6 {[%clk 0:03:30.5]} 31. Bxa7 {[%clk 0:02:22.3]} 31... Rh8
{[%clk 0:03:29.7]} 32. Bb6 {[%clk 0:02:14.1]} 32... Rb7 {[%clk 0:03:28.6]} 33.
Bc5 {[%clk 0:01:58.1]} 33... Kf7 {[%clk 0:03:24.1]} 34. Rf1 {[%clk 0:01:42.1]}
34... g5 {[%clk 0:03:22.8]} 35. f3 {[%clk 0:01:35.1]} 35... Ra8 {[%clk
0:03:19.6]} 36. Rd1 {[%clk 0:01:32.1]} 36... Qe8 {[%clk 0:03:17.9]} 37. Be2
{[%clk 0:01:22.2]} 37... Rd7 {[%clk 0:03:17]} 38. Rxd7+ {[%clk 0:01:19.8]} 38...
Qxd7 {[%clk 0:03:15.8]} 39. Qd3 {[%clk 0:01:15.3]} 39... Qxd3 {[%clk 0:03:14.6]}
40. Bxd3 {[%clk 0:01:15.2]} 40... Ra1 {[%clk 0:03:12.9]} 41. g3 {[%clk
0:01:08.6]} 41... hxg3+ {[%clk 0:03:11.2]} 42. Kxg3 {[%clk 0:01:08.5]} 42... Rh1
{[%clk 0:03:08.7]} 43. Kg2 {[%clk 0:00:57]} 43... Rxh3 {[%clk 0:03:07.9]} 44. c4
{[%clk 0:00:49.6]} 44... Rh8 {[%clk 0:03:06.8]} 45. b4 {[%clk 0:00:45.3]} 45...
Rd8 {[%clk 0:03:05.8]} 46. Bf1 {[%clk 0:00:40.4]} 46... Rd2+ {[%clk 0:03:04.1]}
47. Kg3 {[%clk 0:00:39.6]} 47... Rc2 {[%clk 0:03:00]} 48. b5 {[%clk 0:00:38.9]}
48... Bxc4 {[%clk 0:02:59.2]} 49. b6 {[%clk 0:00:25.1]} 49... Bxf1 {[%clk
0:02:56.2]} 50. b7 {[%clk 0:00:24.4]} 50... Rb2 {[%clk 0:02:55.5]} 0-1

[Event "Live Chess"]
[Site "Chess.com"]
[Date "2024.06.01"]
[Round "-"]
[White "Ferrarifan27"]
[Black "grillage"]
[Result "1-0"]
[WhiteElo "2092"]
[BlackElo "1868"]
[TimeControl "300"]
[EndTime "14:49:20 PDT"]
[Termination "Ferrarifan27 won by resignation"]

1. e4 {[%clk 0:04:56.3]} 1... d5 {[%clk 0:04:58.7]} 2. exd5 {[%clk 0:04:54.7]}
2... Qxd5 {[%clk 0:04:57.2]} 3. Nc3 {[%clk 0:04:52.4]} 3... Qd8 {[%clk
0:04:55.3]} 4. d4 {[%clk 0:04:48.2]} 4... Nf6 {[%clk 0:04:54.2]} 5. Nf3 {[%clk
0:04:46.8]} 5... Bg4 {[%clk 0:04:53.2]} 6. Be2 {[%clk 0:04:41.3]} 6... e6 {[%clk
0:04:51.7]} 7. O-O {[%clk 0:04:39.8]} 7... c6 {[%clk 0:04:49.3]} 8. Re1 {[%clk
0:04:38.7]} 8... Be7 {[%clk 0:04:46.5]} 9. h3 {[%clk 0:04:35.4]} 9... Bxf3
{[%clk 0:04:44.9]} 10. Bxf3 {[%clk 0:04:32.6]} 10... O-O {[%clk 0:04:44.4]} 11.
Bf4 {[%clk 0:04:30]} 11... Bd6 {[%clk 0:04:41.6]} 12. Qd2 {[%clk 0:04:28.8]}
12... Bxf4 {[%clk 0:04:40]} 13. Qxf4 {[%clk 0:04:27.9]} 13... Nbd7 {[%clk
0:04:39.5]} 14. Rad1 {[%clk 0:04:26]} 14... Nb6 {[%clk 0:04:37.3]} 15. b3 {[%clk
0:04:23.8]} 15... Nbd5 {[%clk 0:04:36]} 16. Nxd5 {[%clk 0:04:22.5]} 16... Nxd5
{[%clk 0:04:34.8]} 17. Qg3 {[%clk 0:04:21.8]} 17... Qf6 {[%clk 0:04:26.3]} 18.
c4 {[%clk 0:04:19]} 18... Nb6 {[%clk 0:04:18.2]} 19. Re4 {[%clk 0:04:08.3]}
19... g6 {[%clk 0:04:12.1]} 20. Rf4 {[%clk 0:04:06.3]} 20... Qg7 {[%clk
0:04:11]} 21. d5 {[%clk 0:03:59.3]} 21... cxd5 {[%clk 0:04:07.2]} 22. cxd5
{[%clk 0:03:58]} 22... Nxd5 {[%clk 0:04:06.2]} 23. Bxd5 {[%clk 0:03:56.8]} 23...
exd5 {[%clk 0:04:05.4]} 24. Rxd5 {[%clk 0:03:55.1]} 24... Rad8 {[%clk
0:04:03.1]} 25. Rxd8 {[%clk 0:03:52.3]} 25... Rxd8 {[%clk 0:04:00.6]} 26. Kh2
{[%clk 0:03:51.9]} 26... Qe5 {[%clk 0:03:48.8]} 27. a4 {[%clk 0:03:33]} 27...
Rd2 {[%clk 0:03:31.5]} 28. Rb4 {[%clk 0:03:17.7]} 28... Qxg3+ {[%clk 0:03:29.8]}
29. Kxg3 {[%clk 0:03:15.4]} 29... b6 {[%clk 0:03:28.8]} 30. f3 {[%clk
0:03:02.9]} 30... Kg7 {[%clk 0:03:26.9]} 31. Rc4 {[%clk 0:03:01.1]} 31... Rd3
{[%clk 0:03:21.5]} 32. b4 {[%clk 0:02:58.6]} 32... Ra3 {[%clk 0:03:18.7]} 33. b5
{[%clk 0:02:57.1]} 33... h5 {[%clk 0:03:16.2]} 34. Kf4 {[%clk 0:02:52.4]} 34...
Ra2 {[%clk 0:03:09.9]} 35. g3 {[%clk 0:02:48.2]} 35... Ra3 {[%clk 0:03:05.2]}
36. h4 {[%clk 0:02:46.2]} 36... Kf6 {[%clk 0:03:01.2]} 37. g4 {[%clk 0:02:42.5]}
37... hxg4 {[%clk 0:02:59.5]} 38. fxg4 {[%clk 0:02:41.3]} 38... Ra1 {[%clk
0:02:56]} 39. g5+ {[%clk 0:02:18]} 39... Kg7 {[%clk 0:02:54.8]} 40. Ke5 {[%clk
0:02:15.9]} 40... Ra3 {[%clk 0:02:45.2]} 41. Kd6 {[%clk 0:02:14.2]} 41... f6
{[%clk 0:02:34.7]} 42. Rc7+ {[%clk 0:02:06.9]} 42... Kf8 {[%clk 0:02:33.7]} 43.
Rxa7 {[%clk 0:02:05.3]} 43... fxg5 {[%clk 0:02:32.1]} 44. hxg5 {[%clk
0:02:04.6]} 44... Rg3 {[%clk 0:02:26.2]} 45. Ke6 {[%clk 0:01:54.6]} 45... Rxg5
{[%clk 0:02:24.7]} 46. Kf6 {[%clk 0:01:51.2]} 46... Rf5+ {[%clk 0:02:24]} 47.
Kxg6 {[%clk 0:01:48.2]} 47... Rf4 {[%clk 0:02:23]} 48. Kg5 {[%clk 0:01:35.9]}
48... Rb4 {[%clk 0:02:17.8]} 49. Kf6 {[%clk 0:01:32.6]} 49... Ke8 {[%clk
0:02:17]} 50. Ke6 {[%clk 0:01:30.4]} 50... Kd8 {[%clk 0:02:16.3]} 51. Kd6 {[%clk
0:01:29.8]} 51... Rc4 {[%clk 0:02:12.3]} 52. Ra8+ {[%clk 0:01:24.3]} 52... Rc8
{[%clk 0:02:09.4]} 53. Rxc8+ {[%clk 0:01:23]} 53... Kxc8 {[%clk 0:02:09.1]} 54.
Kc6 {[%clk 0:01:22.3]} 1-0

[Event "Live Chess"]
[Site "Chess.com"]
[Date "2024.06.01"]
[Round "-"]
[White "Pandreq"]
[Black "ShanthamGrarks"]
[Result "1-0"]
[WhiteElo "1179"]
[BlackElo "1737"]
[TimeControl "300"]
[EndTime "14:49:25 PDT"]
[Termination "Pandreq won by resignation"]

1. d4 {[%clk 0:04:58.9]} 1... Nf6 {[%clk 0:04:48.5]} 2. c4 {[%clk 0:04:57.7]}
2... e6 {[%clk 0:04:48.1]} 3. Nc3 {[%clk 0:04:55.8]} 3... Bb4 {[%clk 0:04:47.6]}
4. a3 {[%clk 0:04:54.8]} 4... Bxc3+ {[%clk 0:04:46]} 5. bxc3 {[%clk 0:04:54.7]}
5... c5 {[%clk 0:04:45.3]} 6. Nf3 {[%clk 0:04:51.5]} 6... Nc6 {[%clk 0:04:42.6]}
7. Bd2 {[%clk 0:04:48.3]} 7... cxd4 {[%clk 0:04:40.8]} 8. cxd4 {[%clk
0:04:47.3]} 8... d5 {[%clk 0:04:39.6]} 9. e3 {[%clk 0:04:38.8]} 9... Ne4 {[%clk
0:04:37.2]} 10. cxd5 {[%clk 0:04:35.4]} 10... Nxd2 {[%clk 0:04:34.3]} 11. Qxd2
{[%clk 0:04:18.8]} 11... exd5 {[%clk 0:04:30.7]} 12. Bb5 {[%clk 0:04:11.6]}
12... O-O {[%clk 0:04:29.5]} 13. O-O {[%clk 0:04:09.7]} 13... a6 {[%clk
0:04:28.2]} 14. Ba4 {[%clk 0:04:06.7]} 14... Bg4 {[%clk 0:04:25.7]} 15. Bd1
{[%clk 0:03:58.4]} 15... b5 {[%clk 0:04:19.1]} 16. h3 {[%clk 0:03:56.9]} 16...
Bxf3 {[%clk 0:04:15.6]} 17. Bxf3 {[%clk 0:03:55.6]} 17... Na5 {[%clk 0:04:15.2]}
18. Bxd5 {[%clk 0:03:45.1]} 18... Qxd5 {[%clk 0:04:09.1]} 19. Qxa5 {[%clk
0:03:44]} 19... Rfc8 {[%clk 0:04:06.8]} 20. Rfc1 {[%clk 0:03:32.8]} 20... Rxc1+
{[%clk 0:03:56.3]} 21. Rxc1 {[%clk 0:03:32.7]} 21... h6 {[%clk 0:03:50.3]} 22.
Rc5 {[%clk 0:03:23.6]} 22... Qb3 {[%clk 0:03:44.6]} 23. Qc3 {[%clk 0:03:19.3]}
23... Qb1+ {[%clk 0:03:32.4]} 24. Qc1 {[%clk 0:03:16.6]} 24... Qb3 {[%clk
0:03:28.6]} 25. Rc8+ {[%clk 0:03:09.5]} 25... Rxc8 {[%clk 0:03:27.4]} 26. Qxc8+
{[%clk 0:03:08.9]} 26... Kh7 {[%clk 0:03:27.3]} 27. Qxa6 {[%clk 0:03:06.1]}
27... b4 {[%clk 0:03:23.8]} 28. axb4 {[%clk 0:03:01.4]} 28... Qxb4 {[%clk
0:01:19.4]} 29. Qd3+ {[%clk 0:02:59.1]} 29... g6 {[%clk 0:01:15.6]} 30. g3
{[%clk 0:02:34.6]} 30... Qd6 {[%clk 0:01:08.3]} 31. e4 {[%clk 0:02:29.1]} 31...
h5 {[%clk 0:01:04.4]} 32. e5 {[%clk 0:02:25.8]} 32... Qd5 {[%clk 0:01:03.9]} 33.
f3 {[%clk 0:02:20.6]} 33... Kh6 {[%clk 0:01:02.8]} 34. Qe4 {[%clk 0:02:12.3]}
34... Qa2 {[%clk 0:01:00.5]} 35. d5 {[%clk 0:02:01.9]} 35... Qa1+ {[%clk
0:00:59.1]} 36. Kf2 {[%clk 0:02:00.7]} 36... Qb2+ {[%clk 0:00:58.6]} 37. Qe2
{[%clk 0:01:46.4]} 37... Qb7 {[%clk 0:00:56.4]} 38. d6 {[%clk 0:01:40.4]} 38...
g5 {[%clk 0:00:55.9]} 39. Qd2 {[%clk 0:01:32.7]} 39... Qb6+ {[%clk 0:00:54.2]}
40. Kg2 {[%clk 0:01:31]} 40... Qd8 {[%clk 0:00:51.7]} 41. f4 {[%clk 0:01:22.1]}
41... g4 {[%clk 0:00:49.2]} 42. f5+ {[%clk 0:01:15.4]} 42... Kh7 {[%clk
0:00:46.4]} 43. h4 {[%clk 0:01:09.3]} 43... Qa8+ {[%clk 0:00:44.8]} 44. Kh2
{[%clk 0:01:05.3]} 44... Qa1 {[%clk 0:00:38.8]} 45. d7 {[%clk 0:00:55.8]} 45...
Qf1 {[%clk 0:00:33.1]} 46. Qg2 {[%clk 0:00:45.3]} 46... Qd3 {[%clk 0:00:31.7]}
47. e6 {[%clk 0:00:42.5]} 47... fxe6 {[%clk 0:00:30.7]} 48. fxe6 {[%clk
0:00:41.6]} 48... Kg6 {[%clk 0:00:30.1]} 49. Qf2 {[%clk 0:00:21.2]} 49... Qd6
{[%clk 0:00:16.2]} 50. Qf7+ {[%clk 0:00:16.9]} 50... Kh6 {[%clk 0:00:15.7]} 51.
Qf4+ {[%clk 0:00:13.9]} 51... Qxf4 {[%clk 0:00:13]} 52. gxf4 {[%clk 0:00:12.9]}
1-0